bitfinex-derivatives/quotes_BTCF0:USTF0_20241203
["timestamp","ask_amount","ask_price","bid_price","bid_amount"]
[1733234519354,0.052597,93949.0,93948.0,1e-07]
[1733234520655,0.3618,93963.0,93948.0,1e-07]
[1733234520867,0.053235,93956.0,93948.0,1e-07]
[1733234521361,0.3608,93963.0,93948.0,1e-07]
[1733234521652,0.3608,93955.0,93949.0,0.0027]
[1733234522246,0.3608,93960.0,93949.0,0.0027]
[1733234522449,0.0745,93954.0,93953.0,0.3608]
[1733234522650,0.0718,93954.0,93953.0,0.3608]
[1733234522852,0.0718,93954.0,93948.0,1e-07]
[1733234523561,0.053227,93968.0,93948.0,1e-07]
[1733234523759,0.3608,93973.0,93952.0,0.3608]
[1733234523959,9.192e-05,93979.0,93969.0,0.3608]
[1733234524262,9.192e-05,93979.0,93978.0,0.414021]
[1733234524562,0.00159708,93989.0,93978.0,0.3608]
[1733234524754,0.00159708,93989.0,93988.0,0.35229]
[1733234525948,0.00159708,93989.0,93979.0,0.19681621]
[1733234525949,0.36239708,93989.0,93979.0,0.19681621]
[1733234526155,0.00159708,93989.0,93984.0,0.3608]
[1733234526348,0.00159708,93989.0,93988.0,0.3608]
[1733234526955,0.07325359,93990.0,93989.0,0.053216]
[1733234527458,0.07325359,93990.0,93983.0,0.05322]
[1733234527756,0.07325359,93990.0,93979.0,0.19681621]
[1733234528870,0.04928685,93990.0,93979.0,0.25003821]
[1733234529159,0.3608,93980.0,93970.0,0.00010432]
[1733234529383,0.3608,93971.0,93970.0,0.00010432]
[1733234529657,0.3608,93971.0,93940.0,0.19681621]
[1733234529658,0.3608,93971.0,93930.0,0.19681621]
[1733234529863,0.053242,93944.0,93930.0,0.19681621]
[1733234530161,0.053239,93951.0,93930.0,0.19681621]
[1733234530360,0.1406,93950.0,93930.0,0.19681621]
[1733234530754,0.1406,93950.0,93936.0,0.0001044]
[1733234530959,0.3608,93944.0,93940.0,0.19681621]
[1733234531264,0.1406,93950.0,93940.0,0.55761621]
[1733234531460,0.1406,93950.0,93940.0,0.19681621]
[1733234531657,0.3608,93946.0,93940.0,0.19681621]
[1733234531962,0.3608,93946.0,93936.0,0.0001044]
[1733234533666,0.33415587,93946.0,93936.0,0.0001044]
[1733234534464,0.38739887,93946.0,93936.0,0.0001044]
[1733234534780,0.414047,93938.0,93936.0,0.0001044]
[1733234535065,0.414047,93938.0,93920.0,0.31484122]
[1733234535066,0.053249,93935.0,93920.0,0.25007321]
[1733234535363,0.3608,93947.0,93922.0,0.25371009]
[1733234535555,0.053244,93944.0,93927.0,0.053252]
[1733234535753,0.3608,93934.0,93929.0,0.053252]
[1733234536068,0.3608,93934.0,93924.0,0.25530717]
[1733234536069,0.3608,93934.0,93930.0,0.00012191]
[1733234536556,0.3608,93934.0,93930.0,0.05336891]
[1733234536764,0.1406,93950.0,93931.0,1.5]
[1733234536962,0.1406,93950.0,93932.0,0.32032201]
[1733234537261,0.1406,93950.0,93931.0,1.5]
[1733234537262,0.1406,93950.0,93938.0,0.053243]
[1733234537462,0.1406,93950.0,93942.0,0.3608]
[1733234537664,0.1406,93950.0,93943.0,0.06661192]
[1733234537867,0.053233,93956.0,93944.0,0.053239]
[1733234538057,0.3635,93973.0,93950.0,0.3608]
[1733234538260,0.1391,93971.0,93951.0,0.3608]
[1733234538465,0.053226,93969.0,93959.0,0.3608]
[1733234538758,0.1391,93971.0,93959.0,0.3608]
[1733234538759,0.1391,93971.0,93960.0,0.06668817]
[1733234538959,0.1391,93971.0,93962.0,0.053229]
[1733234539158,0.1391,93971.0,93964.0,0.3608]
[1733234539370,0.1391,93971.0,93964.0,0.42740578]
[1733234539869,0.0027,93982.0,93964.0,0.42740578]
[1733234540167,0.0027,93982.0,93964.0,0.90835344]
[1733234540466,0.04928685,93990.0,93971.0,0.3608]
[1733234540467,0.0027,93988.0,93971.0,0.3608]
[1733234540656,0.04928685,93990.0,93980.0,0.053218]
[1733234540857,0.04928685,93990.0,93989.0,0.66796422]
[1733234541059,0.04928685,93990.0,93989.0,0.48061878]
[1733234541469,0.04928685,93990.0,93989.0,1.98061878]
[1733234541658,0.04928685,93990.0,93989.0,1.92740578]
[1733234541970,0.04928685,93990.0,93989.0,1.56660578]
[1733234542167,0.04928685,93990.0,93989.0,1.92740578]
[1733234542355,0.04928685,93990.0,93989.0,2.4083163]
[1733234542663,0.1,94000.0,93989.0,2.4083163]
[1733234542664,0.1,94000.0,93989.0,1.92740578]
[1733234542865,0.053206,93998.0,93996.0,0.25371234]
[1733234543073,0.053206,93998.0,93997.0,0.06660578]
[1733234543370,0.1,94000.0,93998.0,0.053205]
[1733234543555,0.1,94000.0,93999.0,0.06660578]
[1733234543964,0.02012686,94000.0,93999.0,0.06660578]
[1733234544267,0.00467429,94001.0,93999.0,0.48061078]
[1733234544568,0.00467429,94001.0,94000.0,0.06660578]
[1733234545869,0.05787829,94001.0,94000.0,0.06660578]
[1733234546772,0.00467429,94001.0,94000.0,0.06660578]
[1733234547568,0.00467429,94001.0,94000.0,0.42740578]
[1733234548168,0.00467429,94001.0,94000.0,0.414004]
[1733234548368,0.00467429,94001.0,94000.0,0.4273607]
[1733234548565,0.00467429,94001.0,94000.0,0.3608]
[1733234548773,0.00467429,94001.0,94000.0,0.42735839]
[1733234549277,0.002,94018.0,94000.0,0.42735839]
[1733234549574,0.002,94018.0,94017.0,0.3608]
[1733234549871,0.00159635,94033.0,94032.0,0.053186]
[1733234550077,0.053176,94050.0,94034.0,0.053185]
[1733234550277,0.053179,94045.0,94044.0,0.3608]
[1733234550476,0.1401,94051.0,94044.0,0.3608]
[1733234550676,0.193276,94051.0,94044.0,0.3608]
[1733234550876,0.053178,94046.0,94045.0,0.00013256]
[1733234554774,0.1313,94063.0,94045.0,0.00013256]
[1733234554775,0.00159559,94068.0,94054.0,0.053174]
[1733234554980,0.00159559,94068.0,94067.0,0.3608]
[1733234556480,0.05476159,94068.0,94067.0,0.3608]
[1733234556774,0.00159559,94068.0,94067.0,0.3608]
[1733234558670,0.053166,94069.0,94067.0,0.3608]
[1733234559270,0.133,94088.0,94067.0,0.3608]
[1733234559474,0.053171,94060.0,94058.0,0.00056]
[1733234559778,0.3608,94069.0,94045.0,0.00013256]
[1733234559779,0.053178,94047.0,94045.0,0.00013256]
[1733234559969,0.3608,94046.0,94045.0,0.00013256]
[1733234560178,0.053178,94047.0,94045.0,0.00013256]
[1733234560376,0.053178,94047.0,94046.0,0.3608]
[1733234560678,0.053178,94047.0,94045.0,0.00013256]
[1733234561779,0.3608,94091.0,94046.0,0.3608]
[1733234561979,0.3608,94091.0,94045.0,0.00013256]
[1733234561980,0.053159,94081.0,94064.0,0.413968]
[1733234562286,0.053157,94084.0,94073.0,0.3608]
[1733234562478,0.053153,94091.0,94073.0,0.3608]
[1733234562680,0.1408,94099.0,94073.0,0.3608]
[1733234562879,0.053151,94095.0,94082.0,0.3608]
[1733234563077,0.053152,94092.0,94091.0,0.3608]
[1733234563281,0.053154,94089.0,94070.0,0.55761621]
[1733234563479,0.053154,94089.0,94081.0,0.3608]
[1733234563786,0.00605777,94085.0,94081.0,0.3608]
[1733234563986,0.00605777,94085.0,94084.0,0.3608]
[1733234564288,0.00605777,94085.0,94084.0,0.413957]
[1733234566078,0.1408,94099.0,94084.0,0.3608]
[1733234566278,0.00159527,94106.0,94098.0,0.3608]
[1733234566475,0.00159527,94106.0,94099.0,0.413948]
[1733234566896,0.00159527,94106.0,94099.0,0.41402899]
[1733234567583,0.1085,94100.0,94099.0,0.41402899]
[1733234568083,8.154e-05,94111.0,94099.0,0.41402899]
[1733234568287,8.154e-05,94111.0,94110.0,0.413942]
[1733234570989,0.05314,94115.0,94112.0,0.053141]
[1733234571190,0.00186,94116.0,94114.0,0.41394]
[1733234571493,0.08439905,94177.0,94114.0,0.41394]
[1733234571494,0.0015944,94152.0,94115.0,0.44664]
[1733234571692,0.05312,94149.0,94148.0,0.7216]
[1733234571988,0.05312,94149.0,94148.0,0.72168591]
[1733234572891,0.05312,94149.0,94148.0,0.36088591]
[1733234573092,0.05312,94149.0,94148.0,8.591e-05]
[1733234574184,0.053124,94142.0,94141.0,0.0027]
[1733234574395,0.053124,94142.0,94125.0,0.0212759]
[1733234574396,0.3608,94142.0,94134.0,0.0027]
[1733234574691,0.3608,94142.0,94126.0,0.0027]
[1733234574890,0.3608,94132.0,94128.0,0.053132]
[1733234575084,0.3608,94132.0,94130.0,0.053131]
[1733234575393,0.3608,94132.0,94130.0,0.05313]
[1733234575586,0.3608,94132.0,94129.0,0.00010892]
[1733234575986,0.00849,94141.0,94129.0,0.00010892]
[1733234576794,0.3608,94134.0,94129.0,0.00010892]
[1733234577198,0.09079,94141.0,94140.0,0.053125]
[1733234577490,0.3608,94155.0,94152.0,0.053118]
[1733234577697,0.3608,94155.0,94146.0,0.0027]
[1733234577901,0.3608,94155.0,94143.0,0.0027]
[1733234578196,0.413917,94155.0,94146.0,0.053122]
[1733234578597,0.3608,94155.0,94143.0,0.0027]
[1733234578998,0.00766,94154.0,94144.0,0.053123]
[1733234579185,0.00766,94154.0,94153.0,0.053118]
[1733234579699,0.00766,94154.0,94148.0,0.053121]
[1733234579897,0.00766,94154.0,94149.0,0.05312]
[1733234580091,0.053118,94153.0,94143.0,0.0027]
[1733234580290,0.3608,94145.0,94143.0,0.0027]
[1733234580487,0.3608,94145.0,94136.0,0.0027]
[1733234580690,0.3608,94145.0,94142.0,0.053124]
[1733234580890,0.00766,94154.0,94136.0,0.0027]
[1733234581092,0.1354,94150.0,94137.0,0.0027]
[1733234581294,0.1354,94150.0,94146.0,0.053122]
[1733234581490,0.1354,94150.0,94148.0,0.05312]
[1733234581797,0.1354,94150.0,94140.0,0.30125925]
[1733234581997,0.053123,94145.0,94137.0,0.0027]
[1733234582200,0.053124,94143.0,94137.0,0.0027]
[1733234582393,0.3608,94138.0,94132.0,0.0027]
[1733234582603,0.05313,94132.0,94130.0,0.00013392]
[1733234583095,0.3608,94136.0,94130.0,0.00013392]
[1733234583300,0.3608,94136.0,94130.0,0.26247492]
[1733234583490,0.3608,94136.0,94130.0,0.20934392]
[1733234583697,0.3608,94136.0,94130.0,0.00013392]
[1733234583902,0.3608,94136.0,94135.0,0.053128]
[1733234584100,0.36225868,94136.0,94135.0,0.053128]
[1733234584601,0.00145868,94136.0,94135.0,0.053128]
[1733234584803,0.3608,94153.0,94135.0,0.053128]
[1733234585001,0.3608,94153.0,94140.0,0.19519761]
[1733234585193,0.3608,94153.0,94152.0,0.053118]
[1733234585497,0.3608,94163.0,94152.0,0.413918]
[1733234586201,0.3608,94163.0,94152.0,0.3608]
[1733234586407,0.3608,94163.0,94153.0,0.19519761]
[1733234586602,0.3608,94163.0,94159.0,0.053114]
[1733234586904,0.3608,94163.0,94153.0,0.19519761]
[1733234587204,0.3608,94163.0,94161.0,0.053113]
[1733234587405,0.3608,94163.0,94158.0,0.053115]
[1733234587703,0.3608,94163.0,94153.0,0.40440761]
[1733234587899,0.3608,94163.0,94153.0,0.19519761]
[1733234588104,0.3608,94154.0,94150.0,0.0027]
[1733234588400,0.1431,94154.0,94144.0,0.0027]
[1733234588601,0.36239398,94175.0,94153.0,0.20921]
[1733234588806,0.36239398,94175.0,94161.0,0.3608]
[1733234589101,0.36239398,94175.0,94161.0,0.33624]
[1733234589302,0.36239398,94175.0,94161.0,0.053113]
[1733234589497,0.3608,94164.0,94160.0,0.0027]
[1733234589698,0.053113,94161.0,94154.0,0.0027]
[1733234590108,0.3608,94164.0,94154.0,0.0027]
[1733234590312,0.36239398,94175.0,94156.0,0.053116]
[1733234590313,0.053111,94166.0,94156.0,0.053116]
[1733234590502,0.053111,94166.0,94158.0,0.053115]
[1733234590702,0.3608,94166.0,94154.0,0.21191]
[1733234590901,0.053113,94162.0,94154.0,0.21191]
[1733234591103,0.3608,94166.0,94157.0,0.053115]
[1733234591303,0.053114,94161.0,94154.0,0.21191]
[1733234591509,0.053111,94165.0,94154.0,0.21191]
[1733234591706,0.053113,94162.0,94154.0,0.0027]
[1733234591910,0.053113,94161.0,94154.0,0.0027]
[1733234592211,0.33687753,94166.0,94160.0,0.25246125]
[1733234592412,0.33687753,94166.0,94164.0,0.25246125]
[1733234592603,0.33687753,94166.0,94164.0,0.053111]
[1733234592798,0.3608,94175.0,94162.0,0.25246125]
[1733234592799,0.3608,94175.0,94165.0,0.00013057]
[1733234593006,0.3608,94175.0,94171.0,0.053107]
[1733234593199,0.3608,94175.0,94165.0,0.19532818]
[1733234593412,0.053109,94170.0,94165.0,0.19532818]
[1733234593608,0.02652983,94169.0,94165.0,0.19532818]
[1733234593800,0.3608,94175.0,94165.0,0.00013057]
[1733234594107,0.053109,94169.0,94165.0,0.00013057]
[1733234594303,0.053107,94173.0,94165.0,0.05324157]
[1733234594611,0.053107,94173.0,94165.0,0.26245157]
[1733234594906,0.3608,94175.0,94165.0,0.20934057]
[1733234595109,0.3608,94175.0,94174.0,0.19015439]
[1733234595305,0.413906,94175.0,94170.0,0.19015439]
[1733234595504,0.3608,94175.0,94172.0,0.19015439]
[1733234595705,0.3608,94175.0,94173.0,0.19015439]
[1733234595902,0.053106,94174.0,94173.0,0.19015439]
[1733234596105,0.3608,94175.0,94173.0,0.19015439]
[1733234596306,0.3608,94175.0,94165.0,0.00013057]
[1733234596307,0.3608,94175.0,94172.0,0.19015439]
[1733234596710,0.053106,94174.0,94172.0,0.19015439]
[1733234597105,0.053108,94170.0,94160.0,0.10090713]
[1733234597305,0.053108,94170.0,94130.0,0.5049225]
[1733234597306,0.053118,94153.0,94151.0,0.37869187]
[1733234597512,0.3608,94152.0,94151.0,0.37869187]
[1733234598009,0.3608,94152.0,94128.0,0.0212663]
[1733234598010,0.3608,94152.0,94130.0,0.26234]
[1733234598215,0.3608,94133.0,94131.0,0.06654869]
[1733234598517,0.3608,94133.0,94132.0,0.06647363]
[1733234599111,0.36225849,94133.0,94132.0,0.06647363]
[1733234599611,0.00145849,94133.0,94132.0,0.06647363]
[1733234599814,0.19519761,94150.0,94132.0,0.27568363]
[1733234600016,0.053123,94145.0,94135.0,0.053128]
[1733234600222,0.3608,94152.0,94136.0,0.06647363]
[1733234600409,0.3608,94152.0,94137.0,0.06647363]
[1733234600709,0.053126,94139.0,94138.0,0.06647363]
[1733234601414,0.05459062,94139.0,94138.0,0.06647363]
[1733234601614,0.00145862,94139.0,94138.0,0.06647363]
[1733234602117,0.00145862,94139.0,94138.0,0.27568363]
[1733234602315,0.05459162,94139.0,94138.0,0.27568363]
[1733234602707,0.41539162,94139.0,94138.0,0.27568363]
[1733234603214,0.41539162,94139.0,94138.0,0.06647363]
[1733234604613,0.36225862,94139.0,94131.0,7.506e-05]
[1733234604819,0.053135,94133.0,94132.0,0.06647387]
[1733234605520,0.05459362,94133.0,94132.0,0.06647387]
[1733234605925,0.05459362,94133.0,94131.0,7.506e-05]
[1733234606426,0.053135,94133.0,94132.0,0.06501719]
[1733234606621,0.053132,94137.0,94131.0,7.506e-05]
[1733234606811,0.3608,94139.0,94131.0,7.506e-05]
[1733234607014,0.053131,94138.0,94131.0,7.506e-05]
[1733234607215,0.3608,94139.0,94132.0,0.06647437]
[1733234607423,0.3608,94139.0,94131.0,0.20928506]
[1733234607614,0.3608,94155.0,94134.0,0.3608]
[1733234607814,0.3608,94155.0,94135.0,0.26410279]
[1733234608012,0.3608,94170.0,94154.0,0.053122]
[1733234608215,0.00012509,94176.0,94163.0,0.053117]
[1733234608423,0.00012509,94176.0,94163.0,0.05321792]
[1733234608628,0.00012509,94176.0,94163.0,0.06654308]
[1733234608821,0.00012509,94176.0,94171.0,0.05311]
[1733234609019,0.00012509,94176.0,94163.0,0.00010092]
[1733234609327,0.00012509,94176.0,94165.0,0.053113]
[1733234609521,0.00012509,94176.0,94163.0,0.00010092]
[1733234609720,0.3608,94165.0,94163.0,0.00010092]
[1733234609923,0.053117,94164.0,94163.0,0.00010092]
[1733234610123,0.3608,94172.0,94163.0,0.00010092]
[1733234610326,0.053115,94164.0,94163.0,0.00010092]
[1733234610827,0.053114,94167.0,94163.0,0.00010092]
[1733234611426,0.3608,94172.0,94163.0,0.00010092]
[1733234611427,0.413911,94172.0,94163.0,0.00010092]
[1733234611622,0.053112,94169.0,94163.0,0.00010092]
[1733234611936,0.3608,94172.0,94163.0,0.00010092]
[1733234611937,0.053113,94167.0,94163.0,0.00010092]
[1733234612114,0.053112,94171.0,94163.0,0.00010092]
[1733234612320,0.3608,94172.0,94163.0,0.00010092]
[1733234612624,0.3608,94172.0,94163.0,0.26242592]
[1733234612819,0.3608,94172.0,94165.0,0.053115]
[1733234613024,0.3608,94172.0,94171.0,0.053112]
[1733234613230,0.00012509,94176.0,94175.0,0.053109]
[1733234613719,0.1,94200.0,94175.0,0.3608]
[1733234613931,0.1,94200.0,94195.0,0.3608]
[1733234614128,0.3608,94199.0,94177.0,0.3608]
[1733234614316,0.1,94200.0,94172.0,0.3608]
[1733234614317,0.3608,94182.0,94172.0,0.3608]
[1733234614524,0.65599761,94200.0,94172.0,0.3608]
[1733234614525,0.3608,94191.0,94172.0,0.3608]
[1733234614719,0.053111,94173.0,94168.0,0.02126704]
[1733234614923,0.3608,94175.0,94163.0,0.00010092]
[1733234615318,0.191311,94174.0,94163.0,0.00010092]
[1733234615518,0.1382,94174.0,94163.0,0.05321692]
[1733234615729,0.3608,94175.0,94166.0,0.053114]
[1733234615926,0.3608,94175.0,94163.0,0.00010092]
[1733234616126,0.3608,94175.0,94163.0,0.20931092]
[1733234617332,0.3608,94164.0,94163.0,0.20931092]
[1733234617626,0.3608,94164.0,94163.0,0.00010092]
[1733234617828,0.3608,94164.0,94150.0,0.05]
[1733234617829,0.053123,94151.0,94150.0,0.05]
[1733234618030,0.413923,94151.0,94150.0,0.05]
[1733234619126,0.413923,94151.0,94150.0,0.0500953]
[1733234619327,0.053131,94137.0,94129.0,0.00429353]
[1733234619527,0.3608,94130.0,94129.0,0.00159353]
[1733234620326,0.3608,94130.0,94129.0,0.00169656]
[1733234620830,0.3608,94130.0,94129.0,0.05483256]
[1733234622720,0.3608,94130.0,94129.0,0.26404256]
[1733234623121,0.3608,94130.0,94129.0,0.21090656]
[1733234623929,0.3608,94130.0,94129.0,0.00169656]
[1733234625126,0.36227311,94130.0,94129.0,0.00169656]
[1733234626532,0.36227311,94130.0,94129.0,0.00010303]
[1733234626941,0.36227311,94130.0,94129.0,0.20931303]
[1733234629039,0.36227311,94130.0,94111.0,0.07441304]
[1733234629236,0.7216,94112.0,94099.0,0.0027]
[1733234629437,0.7216,94112.0,94068.0,0.3608]
[1733234629438,0.3608,94100.0,94090.0,0.053157]
[1733234629647,0.3608,94100.0,94075.0,0.1407]
[1733234629648,0.3608,94092.0,94076.0,0.1469]
[1733234629935,0.3608,94092.0,94077.0,8.158e-05]
[1733234630335,0.00147311,94085.0,94077.0,8.158e-05]
[1733234630733,0.00147311,94085.0,94083.0,0.053161]
[1733234631234,0.3608,94092.0,94090.0,0.05168389]
[1733234631436,0.3608,94092.0,94086.0,0.053159]
[1733234631734,0.3608,94092.0,94089.0,0.053158]
[1733234632033,0.3608,94092.0,94082.0,0.02127706]
[1733234632641,0.3608,94090.0,94088.0,0.053158]
[1733234633642,0.00102506,94089.0,94088.0,0.053158]
[1733234634835,0.413944,94111.0,94088.0,0.053158]
[1733234634836,0.3608,94111.0,94110.0,0.053144]
[1733234636734,0.3608,94111.0,94104.0,0.413949]
[1733234636943,0.3608,94111.0,94104.0,0.3608]
[1733234637146,0.3608,94111.0,94110.0,0.053146]
[1733234637534,0.3608,94122.0,94104.0,0.3608]
[1733234637734,0.3608,94122.0,94105.0,0.053148]
[1733234637936,0.3608,94122.0,94115.0,0.053143]
[1733234638145,0.3608,94122.0,94104.0,0.3608]
[1733234638146,0.07437,94121.0,94104.0,0.3608]
[1733234638442,0.07437,94121.0,94109.0,0.053146]
[1733234638443,0.053141,94119.0,94109.0,0.053146]
[1733234638740,0.07437,94121.0,94112.0,0.053144]
[1733234639044,0.05314,94120.0,94112.0,0.053144]
[1733234639235,0.07437,94121.0,94104.0,0.3608]
[1733234640246,0.12751,94121.0,94104.0,0.3608]
[1733234640633,0.10093,94120.0,94104.0,0.3608]
[1733234640834,0.10093,94120.0,94112.0,0.053145]
[1733234641034,0.10093,94120.0,94104.0,0.3608]
[1733234641234,0.10093,94120.0,94117.0,0.053142]
[1733234641446,0.10093,94120.0,94119.0,0.053141]
[1733234641832,0.10093,94120.0,94104.0,0.3608]
[1733234641833,0.10093,94120.0,94113.0,0.053144]
[1733234642033,0.10093,94120.0,94104.0,0.3608]
[1733234642641,0.053144,94114.0,94104.0,0.3608]
[1733234642843,0.3608,94112.0,94091.0,0.0027]
[1733234643040,0.3608,94112.0,94091.0,0.053157]
[1733234643241,0.3608,94112.0,94087.0,0.3608]
[1733234643242,0.3608,94103.0,94087.0,0.3608]
[1733234643443,0.1421,94102.0,94080.0,0.3608]
[1733234643633,0.1421,94102.0,94074.0,0.0027]
[1733234643634,0.053161,94084.0,94074.0,0.0027]
[1733234643839,0.053161,94084.0,94071.0,0.3608]
[1733234644042,0.413963,94080.0,94061.0,0.3608]
[1733234644236,0.053164,94079.0,94061.0,0.3608]
[1733234644644,0.053164,94079.0,94065.0,0.05417015]
[1733234644843,0.3608,94080.0,94065.0,0.00099915]
[1733234645433,0.05216603,94079.0,94061.0,0.3608]
[1733234645744,0.3608,94080.0,94059.0,0.0027]
[1733234645936,0.053172,94066.0,94053.0,0.053179]
[1733234646247,0.3608,94062.0,94050.0,0.053181]
[1733234646541,0.3608,94054.0,94039.0,0.0027]
[1733234646742,0.3608,94054.0,94040.0,9.73e-05]
[1733234646942,0.3608,94054.0,94040.0,0.0532833]
[1733234646943,0.3608,94046.0,94040.0,0.0532833]
[1733234647159,0.3608,94046.0,94040.0,9.73e-05]
[1733234647845,0.2338,94045.0,94041.0,0.053186]
[1733234648241,0.2338,94045.0,94040.0,9.73e-05]
[1733234648844,0.2338,94045.0,94040.0,0.0532843]
[1733234649043,0.2338,94045.0,94040.0,9.73e-05]
[1733234649345,0.23388,94058.0,94054.0,0.053179]
[1733234649745,0.23388,94058.0,94041.0,0.3608]
[1733234649938,0.02128779,94060.0,94041.0,0.3608]
[1733234650143,0.3608,94064.0,94063.0,0.053174]
[1733234650339,0.00159596,94068.0,94066.0,0.053172]
[1733234651341,0.0011817,94067.0,94066.0,0.053172]
[1733234652144,0.0011817,94067.0,94061.0,0.3608]
[1733234652348,0.0011817,94064.0,94052.0,0.3608]
[1733234652554,0.053176,94059.0,94047.0,0.03013462]
[1733234652742,0.0011817,94064.0,94052.0,0.3608]
[1733234652938,0.00159596,94068.0,94041.0,0.3608]
[1733234653248,0.053185,94043.0,94041.0,0.3608]
[1733234653444,0.053185,94044.0,94041.0,0.3608]
[1733234653650,0.00175124,94042.0,94040.0,9.73e-05]
[1733234653849,0.1415,94057.0,94041.0,0.35876399]
[1733234654544,0.053178,94056.0,94043.0,0.053185]
[1733234654744,0.4415,94057.0,94049.0,0.3608]
[1733234655049,0.4415,94057.0,94049.0,0.413982]
[1733234655050,0.1415,94057.0,94049.0,0.413982]
[1733234655245,0.3608,94059.0,94049.0,0.3608]
[1733234655739,0.053176,94060.0,94049.0,0.3608]
[1733234656149,0.59627596,94068.0,94049.0,0.3608]
[1733234656150,0.66239596,94068.0,94052.0,0.05318]
[1733234656355,0.23388,94059.0,94052.0,0.05318]
[1733234656647,0.23388,94059.0,94049.0,0.413982]
[1733234657050,0.23388,94059.0,94051.0,0.053181]
[1733234657653,0.3608,94068.0,94053.0,0.05318]
[1733234657848,0.23392,94062.0,94049.0,0.3608]
[1733234658049,0.23392,94063.0,94049.0,0.3608]
[1733234658254,0.23392,94063.0,94057.0,0.053177]
[1733234658454,0.23392,94063.0,94049.0,0.3608]
[1733234658845,0.36196,94090.0,94057.0,0.3608]
[1733234659160,0.36196,94090.0,94072.0,0.053168]
[1733234659161,0.053162,94084.0,94072.0,0.053168]
[1733234659357,0.053162,94083.0,94075.0,0.053166]
[1733234659553,0.053162,94083.0,94071.0,0.053168]
[1733234659852,0.23392,94086.0,94066.0,0.3608]
[1733234659853,0.053171,94068.0,94066.0,0.3608]
[1733234660054,0.21808099,94081.0,94066.0,0.3608]
[1733234660055,0.036335,94080.0,94066.0,0.3608]
[1733234660359,0.053171,94068.0,94066.0,0.3608]
[1733234661055,0.053174,94063.0,94057.0,0.3608]
[1733234661258,0.053176,94058.0,94057.0,0.3608]
[1733234661554,0.413967,94074.0,94043.0,0.3608]
[1733234661555,0.3608,94066.0,94043.0,0.3608]
[1733234661753,0.3608,94066.0,94022.0,0.31669148]
[1733234661754,0.3608,94054.0,94024.0,0.6141394]
[1733234661964,0.053186,94041.0,94024.0,0.6141394]
[1733234662257,0.053186,94041.0,94024.0,0.2533394]
[1733234662560,0.053197,94021.0,94016.0,0.3608]
[1733234662861,0.053187,94039.0,94016.0,0.3608]
[1733234662862,0.55599761,94030.0,94016.0,0.3608]
[1733234663052,0.3608,94030.0,94016.0,0.3608]
[1733234663448,0.053196,94022.0,94017.0,0.00011673]
[1733234663769,0.053197,94021.0,94017.0,0.00011673]
[1733234664058,0.00118357,94023.0,94017.0,0.00011673]
[1733234664455,0.00118357,94020.0,94017.0,0.05331573]
[1733234664762,0.00118357,94020.0,94017.0,0.00011673]
[1733234664960,0.07445,94022.0,94019.0,0.053198]
[1733234665146,0.07445,94022.0,94019.0,0.3608]
[1733234665953,0.053193,94028.0,94020.0,0.06653574]
[1733234666159,0.053193,94028.0,94027.0,0.3608]
[1733234666848,0.053193,94028.0,94017.0,0.00011673]
[1733234666849,0.053193,94028.0,94018.0,0.3608]
[1733234667052,0.053197,94019.0,94017.0,0.00011673]
[1733234667248,0.23396,94028.0,94017.0,0.00011673]
[1733234667555,0.053197,94019.0,94017.0,0.00011673]
[1733234667755,0.053194,94026.0,94017.0,0.00011673]
[1733234668258,0.053195,94024.0,94017.0,0.00011673]
[1733234668664,0.053197,94021.0,94017.0,0.00011673]
[1733234668964,0.053197,94021.0,94020.0,0.3608]
[1733234669256,0.053195,94023.0,94020.0,0.3608]
[1733234669756,0.053196,94021.0,94020.0,0.3608]
[1733234669957,0.23409248,94026.0,94020.0,0.3608]
[1733234670163,0.28728648,94026.0,94020.0,0.3608]
[1733234670366,0.05332648,94026.0,94020.0,0.3608]
[1733234671354,0.053194,94024.0,94020.0,0.3608]
[1733234671556,0.00013248,94026.0,94020.0,0.3608]
[1733234672853,0.00013248,94026.0,94023.0,0.053194]
[1733234673064,0.00013248,94026.0,94020.0,0.3608]
[1733234673261,0.00013248,94026.0,94025.0,0.053193]
[1733234673566,0.00013248,94026.0,94020.0,0.6141394]
[1733234673956,0.05332448,94026.0,94020.0,0.6141394]
[1733234674270,0.00013248,94026.0,94020.0,0.3608]
[1733234674455,0.053195,94022.0,94020.0,0.3608]
[1733234674761,0.00013248,94026.0,94017.0,0.25426811]
[1733234674961,0.053197,94018.0,94017.0,0.25426811]
[1733234675264,0.053197,94018.0,94000.0,0.153207]
[1733234675265,0.053197,94018.0,94012.0,0.25416914]
[1733234675465,0.3608,94013.0,93995.0,0.37869187]
[1733234675666,0.053208,93996.0,93995.0,0.37869187]
[1733234675966,0.053208,93996.0,93979.0,0.36165]
[1733234675967,0.3608,93999.0,93979.0,0.36165]
[1733234676166,0.053217,93982.0,93979.0,0.36165]
[1733234676368,0.053213,93988.0,93980.0,9.367e-05]
[1733234676664,0.053215,93985.0,93980.0,9.367e-05]
[1733234676866,0.053215,93984.0,93980.0,9.367e-05]
[1733234677359,0.053216,93982.0,93980.0,9.367e-05]
[1733234678764,0.10108,93983.0,93981.0,0.053216]
[1733234678962,0.02129853,94018.0,93981.0,0.053216]
[1733234679163,0.02129853,94018.0,94001.0,0.3608]
[1733234679365,0.2284,94017.0,94005.0,0.053203]
[1733234679565,0.0532,94011.0,94009.0,0.3608]
[1733234680161,0.02129853,94018.0,94001.0,0.3608]
[1733234680463,0.053205,94003.0,94001.0,0.3608]
[1733234680862,0.3608,94008.0,93990.0,0.3608]
[1733234681065,0.19519761,94000.0,93990.0,0.3608]
[1733234681262,0.053205,94002.0,93990.0,0.414012]
[1733234681464,0.053205,94002.0,93993.0,0.05321]
[1733234681769,0.19519761,94010.0,93990.0,0.3608]
[1733234681973,0.0532,94009.0,94007.0,0.3608]
[1733234682160,0.00159673,94015.0,94007.0,0.3608]
[1733234682363,0.0532,94009.0,94007.0,0.3608]
[1733234682871,0.00159673,94015.0,94007.0,0.3608]